Cogmind - Beta 15 @@@ ROGUE MODE // 2025.05.12 @ 22:20:08 Player: Skergy Result: Destroyed by Autobeam Turret with Autobeam Performance ------------- Evolutions (0) 0 Regions Visited (2) 400 Robots Destroyed (26) 130 Value Destroyed (596) 596 Prototype IDs (0) 0 Alien Tech Used (0) 0 Bonus (-18) -18 TOTAL SCORE: 1108 Bonus ------- Friendly Fire -18 Cogmind --------- Core Integrity 0/250 Matter 266/300 Energy 100/100 System Corruption 3% Temperature Cool (18) Movement Rolling (110) Location -10/Subcaves Parts ------- > --- POWER (1) -------- (None) > --- PROPULSION (2) --- Subdweller Monowheel > --- UTILITY (2) ------ Small Storage Unit > --- WEAPON (2) ------- Light Assault Rifle Grenade Launcher > --- INVENTORY (8) ---- Aluminum Leg Flightbrick Machine Analyzer Subdweller Laser Hammer Peak State ------------ > --- POWER ------------ Ion Engine > --- PROPULSION ------- Aluminum Leg Subdweller Monowheel > --- UTILITY ---------- Small Storage Unit Sensor Array > --- WEAPON ----------- Subdweller Laser Slug Cannon > --- INVENTORY -------- Flightbrick Machine Analyzer Grenade Launcher Hammer [Rating: 16] Favorites ----------- Power Ion Engine Engine Ion Engine Propulsion Light Treads Treads Light Treads Leg Aluminum Leg Wheel Subdweller Monowheel Utility Small Storage Unit Device Sensor Array Storage Small Storage Unit Weapon Assault Rifle Energy Gun EM Pulse Gun Energy Cannon Beam Cannon Ballistic Gun Assault Rifle Ballistic Cannon Slug Cannon Launcher Grenade Launcher Impact Weapon Hammer Build | -11 -10 -10 ------- Run | Yrd Mat Sub Slots Evolved . | . . . Power . | . . . Propulsion . | . . . Utility . | . . . Weapon . | . . . Parts Attached 18 | 6 2 10 Power 2 | 1 . 1 Engine 2 | 1 . 1 Core . | . . . Reactor . | . . . Propulsion 5 | 2 . 3 Treads 2 | 2 . . Leg 1 | . . 1 Wheel 2 | . . 2 Hover . | . . . Flight . | . . . Utility 2 | 1 1 . Device 1 | . 1 . Storage 1 | 1 . . Processor . | . . . Hackware . | . . . Protection . | . . . Artifact . | . . . Weapon 9 | 2 1 6 Energy Gun 3 | 1 . 2 Energy Cannon 1 | . 1 . Ballistic Gun 2 | 1 . 1 Ballistic Cannon 1 | . . 1 Launcher 1 | . . 1 Special Weapon . | . . . Impact Weapon 1 | . . 1 Slashing Weapon . | . . . Piercing Weapon . | . . . Special Melee Weapon . | . . . Unidentified Prototypes . | . . . Parts Lost 11 | . 1 10 Power 2 | . . 2 Propulsion 3 | . . 3 Utility 1 | . . 1 Weapon 5 | . 1 4 Highest Loss Streak 4 | . 1 4 To Critical Strikes . | . . . Average Backups 6 | 2 6 6 Power . | . 1 . Propulsion 1 | 1 2 2 Utility . | . . . Weapon 3 | . 3 3 Tool/Special . | . . . Unused Backups 7 | . 2 5 Power . | . . . Propulsion 2 | . . 2 Utility 1 | . . 1 Weapon 4 | . 2 2 Tool/Special . | . . . Average Slot Usage (%) 98 | . 99 98 Engine 13 | . 14 13 Treads 23 | . 28 19 Leg 1 | . . 2 Wheel 2 | . . 5 Device 13 | . 13 13 Storage 14 | . 14 14 Energy Gun 5 | . 9 3 Energy Cannon 7 | . 4 10 Ballistic Gun 9 | . 14 5 Ballistic Cannon 1 | . . 3 Impact Weapon 2 | . . 4 Peak Build Rating 16 | 6 7 16 Average Rating 8 | 4 6 9 On Entrance 4 | . 6 7 Naked Turns . | . . . Heaviest Build 22 | 14 16 22 Greatest Support 40 | 40 40 40 Greatest Overweight (x) 7 | . . 7 Average Overweight (x) . | . . . Largest Inventory Capacity 8 | 8 8 8 Average Capacity 7 | 6 8 8 Most Carried 8 | 4 8 8 Average Carried 7 | 2 6 7 Final Capacity 8 | 8 8 8 Final Carried 8 | 4 7 8 Class Distribution -------------------- 100% | Mutant Dominant Class ---------------- Mutant | -10/Materials Mutant | -10/Subcaves Resources | -11 -10 -10 ----------- Run | Yrd Mat Sub Matter Collected 603 | 202 142 259 Remotely . | . . . Salvage Created 747 | . 315 432 Parts 56 | . 23 33 Haulers Intercepted . | . . . Recyclers Shooed . | . . . Parts Field Recycled . | . . . Retrieved Matter . | . . . Parts Self-Destructed 20 | . . 20 Prevented . | . . . Kills | -11 -10 -10 ------- Run | Yrd Mat Sub Combat Hostiles Destroyed 23 | . 8 15 Melee 2 | . . 2 Guns 16 | . 7 9 Cannons 4 | . . 4 AOE 1 | . 1 . Classes Destroyed 6 | . 4 2 Worker 2 | . 2 . Watcher 1 | . 1 . Swarmer 11 | . 4 7 Grunt 5 | . 4 1 Sentry 1 | . . 1 Subdweller 6 | . . 6 Best Kill Streak 5 | . 3 5 Combat Bots Only 5 | . 3 5 Max Kills in Single Turn 2 | . 2 1 Gunslinging . | . . . Exploded 1 | . 1 . Melee 1 | . . 1 Uniques/NPCs Destroyed . | . . . Combat | -11 -10 -10 -------- Run | Yrd Mat Sub Hostile Shots Fired 143 | . 29 114 Missed 39 | . 10 29 Hits 104 | . 19 85 Projectile 104 | . 19 85 Damage Taken 1339 | . 232 1107 Core 255 | . 14 241 Absorbed by Shields . | . . . Core Remaining (%) 100 | 100 . . Volleys Fired 60 | . 21 39 Largest 2 | . 2 2 Hottest 100 | . 80 100 Shots Fired 110 | . 43 67 Gun 74 | . 40 34 Cannon 32 | . 3 29 Launcher 4 | . . 4 Special . | . . . Kinetic 55 | . 21 34 Thermal 30 | . 3 27 Explosive 4 | . . 4 Electromagnetic 21 | . 19 2 Robot Hit Streak 17 | . 9 17 Robot Miss Streak 6 | . 6 2 Penetration Max . | . . . Secondary Targets 3 | . 3 . Max Gunslinging Chain 1 | . 1 . Shots Hit Robots 74 | . 21 53 Core Hits 37 | . 13 24 Critical Kills . | . . . Critical Parts Destroyed 2 | . . 2 Critical Strikes 2 | . . 2 Destroy 1 | . . 1 Smash 1 | . . 1 Melee Attacks 9 | . . 9 Impact 9 | . . 9 Slashing . | . . . Piercing . | . . . Sneak Attacks . | . . . Combat Hostiles . | . . . Follow-up Attacks . | . . . Damage Inflicted 1401 | . 423 978 Guns 670 | . 306 364 Cannons 403 | . . 403 Explosions 227 | . 117 110 Melee 101 | . . 101 Ramming . | . . . Kinetic 564 | . 135 429 Thermal 415 | . 117 298 Explosive 110 | . . 110 Electromagnetic 211 | . 171 40 Impact 101 | . . 101 Slashing . | . . . Piercing . | . . . Highest Corruption 3 | . 3 3 Average Corruption 2 | . 2 3 Corruption Purged . | . . . Corruption Blocked . | . . . Effects 25 | . 6 19 Message Errors 6 | . 2 4 Matter Fused 8 | . 1 7 Heat Flow Errors 3 | . . 3 Energy Discharges 1 | . . 1 Data Loss (minor) 2 | . . 2 Data Loss (major) 1 | . . 1 Misfires 2 | . 2 . Alerts 1 | . 1 . Weapon Failures 1 | . . 1 Overload Shots . | . . . Overflow Damage 34 | . . 34 Projectiles . | . . . Explosions . | . . . Melee 34 | . . 34 Knockbacks 1 | . . 1 Impact . | . . . Kinetic 1 | . . 1 Secondary . | . . . Self-Inflicted Damage . | . . . Shots . | . . . Rammed . | . . . Targets Rammed . | . . . Kicked . | . . . Crushed . | . . . Highest Temperature 236 | . 42 236 Average Temperature 44 | . 25 79 Received Heat Transfer 330 | . 69 261 Effects 1 | . . 1 Interference 1 | . . 1 Siege Activations . | . . . Martial Activations . | . . . Shielding Activations . | . . . Robots Disrupted . | . . . Combat Hostiles . | . . . Robots Corrupted . | . . . Combat Hostiles . | . . . Parts Fried 1 | . 1 . Impact Corruptions 2 | . . 2 Robots Melted . | . . . Combat Hostiles . | . . . Parts Melted . | . . . Heat Transferred 732 | . 200 532 Parts Sabotaged . | . . . Parts Stolen . | . . . Parts Stripped . | . . . Power Chain Reactions 2 | . 2 . Alert | -11 -10 -10 ------- Run | Yrd Mat Sub Maximum Alert Level . | . . . Low Security (%) 100 | 100 100 . Level 1 . | . . . Level 2 . | . . . Level 3 . | . . . Level 4 . | . . . Level 5 . | . . . High Security . | . . . Max Security . | . . . Peak Influence 99 | . 99 . Initial . | . . . Average 19 | . 21 . Influence Increases 466 | . 216 250 Destroy 0b10 Robot/C 340 | . 160 180 Destroy 0b10 Robot/NC 15 | . 15 . Destroy Leader 42 | . 32 10 Destroy Structure 9 | . 9 . Lose Combat Pursuer 60 | . . 60 Influence Decreases 378 | . 216 162 Time Decay 328 | . 206 122 Lost Part 50 | . 10 40 Squads Dispatched 1 | . 1 . Investigation . | . . . Extermination . | . . . Reinforcement 1 | . 1 . Assault . | . . . Garrison . | . . . Intercept . | . . . Searches Triggered . | . . . Construction Impeded . | . . . Haulers Reinforced . | . . . Active Scanning Responses . | . . . Cargo Convoy Interrupts . | . . . Stealth | -11 -10 -10 --------- Run | Yrd Mat Sub Distress Signals 2 | . 2 . Communications Jammed . | . . . Distress Signals . | . . . Times Spotted 34 | . 14 20 Peak Tracking Total 6 | . 4 6 Tactical Retreats 2 | . . 2 Traps | -11 -10 -10 ------- Run | Yrd Mat Sub Traps Triggered 3 | . 3 . Indirectly . | . . . Trap Hack Attempts . | . . . Triggered . | . . . Disarmed . | . . . Reprogrammed . | . . . Reused . | . . . Traps Extracted . | . . . Installed . | . . . Triggered . | . . . Machines | -11 -10 -10 ---------- Run | Yrd Mat Sub Machines Disabled 3 | . . 3 Max in Single Turn 2 | . . 2 Machines Repaired . | . . . Machines Dismantled . | . . . Machines Sabotaged . | . . . Overloaded Fab Kills . | . . . Hacking | -11 -10 -10 --------- Run | Yrd Mat Sub Machines Accessed 1 | . 1 . Terminals 1 | . 1 . Fabricators . | . . . Repair Stations . | . . . Recycling Units . | . . . Scanalyzers . | . . . Garrison Access . | . . . Total Hacks 2 | . 2 . Successful 1 | . 1 . Failed 1 | . 1 . Catastrophic . | . . . Database Lockouts . | . . . Manual 2 | . 2 . Terminals 2 | . 2 . Fabricators . | . . . Repair Stations . | . . . Recycling Units . | . . . Scanalyzers . | . . . Garrison Access . | . . . Terminal Hacks . | . . . Fabricator Hacks . | . . . Repair Station Hacks . | . . . Recycling Unit Hacks . | . . . Scanalyzer . | . . . Garrison Access Hacks . | . . . Unauthorized Hacks 1 | . 1 . Terminals 1 | . 1 . Botnet 1 | . 1 . Fabricators . | . . . Repair Stations . | . . . Recycling Units . | . . . Scanalyzers . | . . . Garrison Access . | . . . Data Cores Recovered . | . . . Used . | . . . Hacking Detections 1 | . 1 . Full Trace Events . | . . . Feedback Events . | . . . Feedback Blocked . | . . . Robot Schematics Acquired . | . . . Robots Built . | . . . Authchips . | . . . Time . | . . . Total Robot Build Rating . | . . . Part Schematics Acquired . | . . . Parts Built . | . . . Authchips . | . . . Time . | . . . Total Part Build Rating . | . . . Parts Repaired . | . . . Time . | . . . Parts Recycled . | . . . Recycled Matter . | . . . Retrieved Matter . | . . . Retrieved Components . | . . . Parts Scanalyzed . | . . . Part Schematics Acquired . | . . . Parts Damaged . | . . . Bothacking | -11 -10 -10 ------------ Run | Yrd Mat Sub Used RIF Installer . | . . . Robots Hacked . | . . . Non-combat . | . . . Combat . | . . . Robot Hacks Applied . | . . . Relay Couplers Released . | . . . Fabnet Peak Effective % . | . . . Robots Rewired . | . . . Allies Hacked . | . . . Hacks Repelled . | . . . Allies | -11 -10 -10 -------- Run | Yrd Mat Sub Total Allies . | . . . Largest Group . | . . . Highest-Rated Group . | . . . Highest-Rated Ally . | . . . Total Orders . | . . . Ally Attacks . | . . . Total Damage . | . . . Kills . | . . . Allies Corrupted . | . . . Allies Melted . | . . . Intel | -11 -10 -10 ------- Run | Yrd Mat Sub Active Infowar (turns) 1929 | . 846 1083 Sensors 1929 | . 846 1083 Robot Analysis Total . | . . . Derelict Logs Recovered . | . . . Drone Launches . | . . . Drone Recoveries . | . . . Exploration | -11 -10 -10 ------------- Run | Yrd Mat Sub Turns Passed 2056 | 71 892 1093 Spaces Moved 1166 | 40 497 629 Core 6 | 5 . 1 Treads 949 | 35 497 417 Legs 2 | . . 2 Wheels 209 | . . 209 Hover . | . . . Flight . | . . . Fastest Speed 50 | 50 160 95 Average Speed 151 | 146 160 144 Slowest Speed 400 | 160 160 400 Overloaded Moves . | . . . Propulsion Burnouts . | . . . Robots Hopped . | . . . Potential Cave-ins . | . . . Cave-ins Triggered . | . . . Exploration Rate (%) 33 | 4 61 35 Regions Visited 2 Branch Regions 1 Pre-discovered Areas . | . . . Known Exits Taken . | . . . Unknown Exits Taken 2 | 1 1 . Scrap Searched 4 | . . 4 Spaces Dug . | . . . Terrain Destroyed 17 | . 11 6 Melee . | . . . Projectile 2 | . . 2 AOE 15 | . 11 4 Terrain Rammed . | . . . Walls Destroyed . | . . . Machines Disabled . | . . . Actions | -11 -10 -10 --------- Run | Yrd Mat Sub Total 1337 | 50 553 734 Wait 55 | . 26 29 Move 1164 | 39 496 629 Hop . | . . . Pick Up 19 | 5 6 8 Fast Attach 9 | 5 1 3 Attach 8 | 1 1 6 Detach 1 | . . 1 Swap 4 | . . 4 Drop 8 | . 2 6 Fire 60 | . 21 39 Melee 9 | . . 9 Ram . | . . . Kick . | . . . Crush . | . . . Escape Stasis . | . . . Rewire . | . . . Trap . | . . . Miscellaneous . | . . . Route ------- -11/Scrapyard -10/Materials (discovered 4 exits: [*Mat] / [*Min x2] / [*Sub]) -10/Subcaves (discovered 2 exits: [*Mat] / [*Rec]) History --------- Turn | Location | Event 11 | -11/Scrapyard | Discovered new exit (range 15) 72 | -11/Scrapyard | Entered Materials 310 | -10/Materials | Build established: Mutant 399 | -10/Materials | Discovered new exit (range 16) 510 | -10/Materials | Discovered new exit (range 15) 521 | -10/Materials | Discovered new exit (range 14) 948 | -10/Materials | Discovered new exit (range 10) 964 | -10/Materials | Entered Subcaves 965 | -10/Subcaves | Approached by a straggling Scientist 1197 | -10/Subcaves | A swath of the cavern ceiling suddenly collapsed 1551 | -10/Subcaves | Shifting Twisted Machinery released Riot Gun 1553 | -10/Subcaves | Shifting Twisted Machinery released Sub. Power Source 1727 | -10/Subcaves | A Subdweller sparked back to life 1727 | -10/Subcaves | A Subdweller sparked back to life 1727 | -10/Subcaves | A Subdweller sparked back to life 1730 | -10/Subcaves | Core integrity fell below 50% 1768 | -10/Subcaves | Found Prototype Flight Unit 1779 | -10/Subcaves | Lost 4 parts (2n2w) 1800 | -10/Subcaves | Discovered new exit (range 6) 2001 | -10/Subcaves | Discovered new exit (range 14) 2032 | -10/Subcaves | Core integrity fell below 20% 2057 | -10/Subcaves | Destroyed by Autobeam Turret with Autobeam Last Messages --------------- 02028_ Lgt. Assault Rifle fries itself beyond repair. 02028_ Lgt. Ion Engine fries itself beyond repair. 02030_ Acquired Lgt. Assault Rifle. 02031_ Flight Unit fries itself beyond repair. 02039_ System corrupted: Heat flow error (+232). 02039_ S-10 Pest destroyed. 02040_ Overheating: System interference. 02040_ Hammer temporarily disabled. 02040_ Searching scrap... 02040_ Found Mak. Kinetic Plating. 02040_ Found Sub. Laser. 02040_ Found 48 Matter. 02041_ Acquired 21 matter. 02042_ Acquired Sub. Laser. 02044_ The unstable cave ceiling collapses. 02046_ Acquired 10 matter. 02047_ Sensor Array destroyed. 02048_ Machine disabled. 02049_ Ion Engine destroyed. 02057_ Wheel destroyed. Map ----- +----------------------------------------------------+ | ?????????????????????????????????????????????????? | | ?????????????????????????????????????????????????? | | ?????????????????????????????????????????????????? | | ?????????????????????????????????????????????????? | | ?????????????????????????????????????????????????? | | ?????????????????????????????????????????????????? | | ?????????????????????????????????????????????????? | | ?????????????????????????????????????????????????? | | ?????????????????????????????????????????????????? | | ?????????????????????????????????????????????????? | | ?????????????????????????????????????????????????? | | ????????????????????????????? ???????????????????? | | ???????????????????????????? ?????????????????? | | ???????????????????????????? ?????????????????? | | ???????????????????????????? ??????????????????? | | ???????????????????????????? ??????????????????? | | ??????????????????????????? ???????????????????? | | ???????????????????????????* ???????????????????? | | ??????????????????????????? #???????????????????? | | ????????????????????????### ????????????????##??? | | ????????????????????????# ???????""??###### ## | | ????????????????????????# ?????? "#?# | | ???????????????????????## ##### ##?# | | ???????????????????????# t #?# ## | | ???????????????????????# <#?## ##??# | | ?????????????????????####@ t #??# #??## | | ?????????????????????#%#%####### #???# ### | | ?????????????????????###!##???????????????# | | ???????????????????????## ##??????????????# | | ????????????????????????##%##?????????????# | | ?????????????????????????##"##???????????## | | ??????????????????????????## ##??????????# # | | ?????????????????????????## # #?????????#### "# | | ????????????????????????## ###???????###"####"""# | | ???????????????????????## ###????????#####""## # # | | ???????????????????????# ##??????????# #"##" # | | ???????????????????????# ##?????????# #"""#"#"# | | ???????????????????????## ##???????# #"##" #### | | ????????????????????????## ##??????# # ##"##?#### | | ????????????????????????# # ##?????#??### ##?????? | | ????????????????????????# ## ##???????###"##?????# | | ????????????????????????#??## ######??##" "#?????# | | ????????????????????????????## ## ##?## ###????## | | ?????????????????????????????## ## ### # #?????# | | ????????????????????????????## ### ## # #?????# | | ???????????????????????????## ### # # ##? ?????## | | ??????????????????????????## ##??# ## ##??# ?????# | | ?????????????????????????## ##???##% #???# ????? | | ?????????????????????????# #?????######????#????? | | ????????????????????????## ##????????????????????? | +----------------------------------------------------+ Best States ------------- Heat Dissipation 25 Energy Generation 10 Energy Capacity 250 Matter Stores 300 Matter Capacity 300 Sight Range 16 Robot Scan Range 14 Terrain Scan Density 10 Evasion (%) 41 Recoil Reduction 2 Item Schematics ----------------- None Robot Schematics ------------------ None Fabricated ------------ Nothing Repaired ---------- Nothing Alien Tech Used ----------------- None Achievements -------------- None Challenges ------------ None Game ------ Seed SpikedLobotomyReconfigurator Manual? 0 Play Time 00:16:53 Cumulative 75.0 hours Start 2025.05.12 @ 22:02:50 End 2025.05.12 @ 22:20:08 Sessions 1 Manual Loads 0 Difficulty Rogue Special Mode None Game No. 85 Rogue 85 Adventurer 0 Explorer 0 Win Type - Total 2 Types 2/0/0/0/0/0/0/0/0/0 Lore% 47 Gallery% 42 Achievement% 40 Wizard Run 0 Options --------- Layout 0 ASCII 0 Keyboard 1 Movement Numpad Keybinds 0 Fullscreen 1 Font 24/Terminus Map View 76x50 Zoom Use 0% Tactical HUD 1 Map Filters NONE Filters NONE Steam 1 RUN: 0ec53d28-799f-4f9c-87e7-fc97231ca4ae